Cogmind - Beta 16.1 @@@ ROGUE MODE // 2026.02.25 @ 19:12:11 Player: +Jones Result: Destroyed by H-66 Slayer with Gauss Rifle Performance ------------- Evolutions (5) 2500 Regions Visited (15) 3000 Robots Destroyed (209) 1045 Value Destroyed (7705) 7705 Prototype IDs (42) 840 Alien Tech Used (1) 200 Bonus (2700) 2700 TOTAL SCORE: 17990 Bonus ------- High Alert Combat Kills 310 Follower Combat Kills 1788 Met Data Miner 300 Met Zhirov 300 Built Enhanced Grunts 300 A7 Reached Mainframe 300 Met R17 at Cetus 500 Read Decrypted Archives 300 Friendly Fire -1398 Cogmind --------- Core Integrity 0/1000 Matter 192/300 Energy 660/660 System Corruption 29% Temperature Warm (198) Movement Treading (230) Ox1 Location -5/Hub_04(d) Parts ------- > --- POWER (2) -------- Quantum-Antimatter Reactor > --- PROPULSION (6) --- Treaded Centrium-Reflex Exoskeleton > --- UTILITY (6) ------ Armored Scrap Engine Advanced Heat Sink High-capacity Storage Unit Centrium Medium Armor Plating > --- WEAPON (4) ------- Hvy. Accelerated Gauss Construct/C Phasing Sabre > --- INVENTORY (20) --- Matter Compressor (250) Advanced Signal Interpreter Advanced Terrain Scanner 0b10 Decoder Chip [Skirmisher] Core Analyzer Improved Transmission Jammer Gun Armor Centrium Medium Armor Plating Improved Corruption Screen Improved Corruption Screen Long-range Tractor Beam Heart of Steel Advanced Variable Charge Gun Advanced Variable Charge Gun KE Penetrator Advanced KE Penetrator Heavy Rocket Launcher Improved Plasma Cutter Peak State ------------ > --- POWER ------------ Quantum-Antimatter Reactor > --- PROPULSION ------- Treaded Centrium-Reflex Exoskeleton Compact Wheel > --- UTILITY ---------- Armored Scrap Engine Advanced Heat Sink High-capacity Storage Unit Centrium Medium Armor Plating Advanced Shield Generator > --- WEAPON ----------- Hvy. Accelerated Gauss Construct/C Phasing Sabre > --- INVENTORY -------- Matter Compressor Advanced Signal Interpreter Advanced Terrain Scanner 0b10 Decoder Chip [Skirmisher] Core Analyzer Improved Transmission Jammer Gun Armor Centrium Medium Armor Plating Improved Corruption Screen Improved Corruption Screen Long-range Tractor Beam Heart of Steel Advanced Variable Charge Gun Advanced Variable Charge Gun KE Penetrator Advanced KE Penetrator Heavy Rocket Launcher Improved Plasma Cutter [Rating: 118] Favorites ----------- Power Constructs Engine Deuterium Engine Power Core Light Nuclear Core Reactor Constructs Propulsion Light Treads Treads Light Treads Leg Multireflex Exoskeleton Wheel Wheel Utility Armored Scrap Engine Device Armored Scrap Engine Storage Huge Storage Unit Processor Improved Signal Interpreter Hackware Hacking Suite Protection Light Armor Plating Weapon Constructs Energy Gun Constructs Energy Cannon Heavy Phase Cannon Ballistic Gun Assault Rifle Ballistic Cannon Constructs Launcher Long-range Missile Launcher Special Weapon Mining Laser Impact Weapon Great Maul Slashing Weapon Ripper Build | -11 -10 -10 -8 -8 -8 -6 -6 -6 -6 -5 -5 -5 -5 -5 -5 ------- Run | Yrd Mat Sub Mat Sto Rec Fac Low Low Dat Pro Fac Ext Cet Arc Hub Slots Evolved 10 | . . . 4 . . 4 . . . . 2 . . . . Power 1 | . . . . . . . . . . . 1 . . . . Propulsion 3 | . . . 2 . . 1 . . . . . . . . . Utility 4 | . . . 1 . . 2 . . . . 1 . . . . Weapon 2 | . . . 1 . . 1 . . . . . . . . . Parts Attached 123 | 7 6 9 28 13 3 7 2 4 . 2 18 20 1 . 3 Power 5 | 1 . 1 2 . . . . . . . 1 . . . . Engine 3 | 1 . 1 1 . . . . . . . . . . . . Core 2 | . . . 1 . . . . . . . 1 . . . . Reactor . | . . . . . . . . . . . . . . . . Propulsion 34 | 2 1 2 10 6 . 1 . . . . 4 7 . . 1 Treads 14 | 2 1 . 4 6 . 1 . . . . . . . . . Leg 1 | . . . . . . . . . . . 1 . . . . Wheel 19 | . . 2 6 . . . . . . . 3 7 . . 1 Hover . | . . . . . . . . . . . . . . . . Flight . | . . . . . . . . . . . . . . . . Utility 39 | 2 3 1 4 2 2 3 2 2 . 2 7 7 1 . 1 Device 19 | 1 1 . 1 1 1 1 1 1 . 2 3 5 . . 1 Storage 5 | 1 1 1 1 . . . . 1 . . . . . . . Processor 3 | . . . . . . 1 . . . . 1 1 . . . Hackware 1 | . . . . . 1 . . . . . . . . . . Protection 11 | . 1 . 2 1 . 1 1 . . . 3 1 1 . . Artifact . | . . . . . . . . . . . . . . . . Weapon 45 | 2 2 5 12 5 1 3 . 2 . . 6 6 . . 1 Energy Gun 6 | . . . 4 1 . . . . . . 1 . . . . Energy Cannon 3 | . . . 1 . . . . . . . 2 . . . . Ballistic Gun 17 | 2 . 4 6 4 . . . . . . . 1 . . . Ballistic Cannon 7 | . 1 1 . . 1 1 . . . . 1 2 . . . Launcher 4 | . . . 1 . . . . 1 . . 1 . . . 1 Special Weapon 2 | . 1 . . . . . . . . . . 1 . . . Impact Weapon 1 | . . . . . . . . . . . 1 . . . . Slashing Weapon 5 | . . . . . . 2 . 1 . . . 2 . . . Piercing Weapon . | . . . . . . . . . . . . . . . . Special Melee Weapon . | . . . . . . . . . . . . . . . . Unidentified Prototypes 9 | . . . 2 2 1 . . 1 . . 2 . 1 . . Parts Lost 37 | . 2 8 . 1 . . . 1 . 1 12 9 . . 3 Power 2 | . . 1 . . . . . . . . 1 . . . . Propulsion 10 | . 1 1 . . . . . . . . 1 5 . . 2 Utility 8 | . . 1 . 1 . . . . . 1 2 2 . . 1 Weapon 17 | . 1 5 . . . . . 1 . . 8 2 . . . Highest Loss Streak 6 | . 2 6 . 1 . . . 1 . 1 3 4 . . 1 To Critical Strikes 1 | . . . . . . . . . . . . . . . 1 Average Backups 17 | 2 7 13 18 21 16 16 18 19 21 20 18 20 17 18 17 Power . | . . . . 1 1 . . . . . . . . . . Propulsion 1 | . 1 2 2 2 1 . . . . . . . 1 1 . Utility 10 | . 1 4 7 7 8 9 13 13 15 14 14 16 11 11 11 Weapon 4 | 1 4 6 7 10 6 4 4 4 4 3 1 1 2 5 4 Tool/Special . | . . . . . . . . . . . . . . . . Unused Backups 53 | . 3 1 9 . 10 2 1 . . . 2 6 2 . 17 Power 2 | . . . . . . 1 . . . . . . 1 . . Propulsion 4 | . 1 . . . 2 . . . . . . . . . 1 Utility 22 | . 1 . 3 . 1 . 1 . . . 1 5 . . 10 Weapon 23 | . 1 1 6 . 7 1 . . . . . 1 1 . 5 Tool/Special 2 | . . . . . . . . . . . 1 . . . 1 Average Slot Usage (%) 73 | . 99 95 94 99 76 61 62 57 56 56 50 64 58 61 55 Engine 4 | . 14 11 . 9 9 6 1 4 . . . . . . . Core 2 | . . . 7 . . . 4 1 6 6 5 4 . . . Treads 10 | . 27 6 18 36 22 8 2 6 6 6 2 2 . . 4 Wheel 6 | . . 20 17 . . . 3 . . . 2 12 11 11 4 Device 10 | . 12 2 8 4 9 16 12 12 12 12 11 13 16 16 15 Storage 8 | . 14 14 9 9 9 6 6 6 6 6 5 5 5 5 5 Processor 1 | . . . . . . . 6 6 6 6 1 2 . . . Protection 3 | . 1 11 5 12 1 . . . . . 3 4 4 5 5 Energy Gun 3 | . . . 8 4 6 6 4 . . . 2 5 5 . . Energy Cannon 1 | . . . . . . . . 3 6 6 8 . . 5 3 Ballistic Gun 9 | . 24 12 11 22 17 2 4 8 6 6 . 3 . . . Ballistic Cannon 2 | . . 6 2 . . 10 7 2 . . . 2 2 . 1 Special Weapon 1 | . 3 8 2 . . . . . . . . . 1 5 . Slashing Weapon 1 | . . . . . . 1 2 3 6 6 1 2 3 5 5 Peak Build Rating 118 | 7 8 12 25 36 47 62 68 72 68 71 95 102 115 115 118 Average Rating 51 | 6 7 9 22 31 41 54 64 66 68 68 76 84 108 115 115 On Entrance 54 | . 7 7 8 22 36 46 60 65 68 68 71 82 102 115 115 Avg Prop Armor Cover (%) 11 | . . . 9 . . . . . . . 9 10 . . 20 Naked Turns . | . . . . . . . . . . . . . . . . Heaviest Build 134 | 15 22 94 93 105 103 69 104 105 100 100 134 132 92 92 97 Greatest Support 143 | 40 40 40 80 86 86 84 143 143 104 104 104 96 82 66 66 Greatest Overweight (x) 10 | . 6 8 3 1 2 1 . . . . 7 10 1 1 8 Average Overweight (x) 1 | . . 3 1 . . . . . . . 1 1 . 1 5 Largest Inventory Capacity 25 | 8 10 25 25 25 25 20 25 25 25 25 25 25 20 20 20 Average Capacity 21 | 7 9 21 20 22 22 20 23 25 25 25 25 23 20 20 20 Most Carried 25 | 4 10 23 20 25 25 20 22 25 25 25 25 25 20 20 20 Average Carried 18 | 2 7 15 19 22 17 18 20 23 25 24 21 22 19 20 19 Final Capacity 25 | 8 10 25 20 25 20 20 25 25 25 25 25 20 20 20 20 Final Carried 25 | 4 9 20 20 25 14 20 21 25 25 24 24 20 20 20 20 Scrap Engine Consumption 155 | . . . . . 32 9 19 10 . . 25 40 11 . 9 Constructs Created 9 | . . . . . 4 . 1 . . . 2 2 . . . Constructs Modified 57 | . . . . . 6 2 10 6 . . 6 18 5 . 4 Class Distribution -------------------- 39% | Construct 16% | Mutant 14% | Scavenger-Mutant 8% | Commander-Construct 7% | Scavenger-Tank 6% | Tank 5% | Scavenger-Gunner Dominant Class ---------------- Mutant | -10/Materials Scavenger-Mutant | -10/Subcaves Scavenger-Tank | -8/Materials Scavenger-Tank | -8/Storage Construct | -8/Recycling Construct | -6/Factory Construct | -6/Lower Caves Construct | -6/Lower Caves Construct | -6/Data Miner Construct | -5/Proximity Caves Mutant | -5/Factory Commander-Construct | -5/Extension Commander-Construct | -5/Cetus Commander-Construct | -5/Archives Construct | -5/Hub_04(d) Resources | -11 -10 -10 -8 -8 -8 -6 -6 -6 -6 -5 -5 -5 -5 -5 -5 ----------- Run | Yrd Mat Sub Mat Sto Rec Fac Low Low Dat Pro Fac Ext Cet Arc Hub Matter Collected 6549 | 366 459 487 1217 831 165 57 555 253 . 129 559 1130 79 . 262 Remotely . | . . . . . . . . . . . . . . . . Salvage Created 9795 | 156 608 411 1079 1335 101 57 685 747 . 203 1596 1104 64 . 1649 Parts 476 | 16 39 26 53 68 . 5 30 30 . 12 63 49 1 . 84 Haulers Intercepted 9 | . 1 . 3 2 . . . . . . . 2 . . 1 Recyclers Shooed 6 | . . . 2 2 . . . . . . 1 1 . . . Parts Field Recycled . | . . . . . . . . . . . . . . . . Retrieved Matter . | . . . . . . . . . . . . . . . . Parts Self-Destructed 42 | . . 10 . . . . 6 16 . 10 . . . . . Prevented . | . . . . . . . . . . . . . . . . Parts Restored . | . . . . . . . . . . . . . . . . Kills | -11 -10 -10 -8 -8 -8 -6 -6 -6 -6 -5 -5 -5 -5 -5 -5 ------- Run | Yrd Mat Sub Mat Sto Rec Fac Low Low Dat Pro Fac Ext Cet Arc Hub Combat Hostiles Destroyed 141 | . 14 13 10 18 2 1 1 8 . 5 28 20 1 . 20 Melee 11 | . . . . . . . . 1 . . 2 1 . . 7 Guns 59 | . 13 7 4 18 2 1 . 2 . 2 . 10 . . . Cannons 44 | . 1 6 2 . . . 1 3 . 1 10 7 1 . 12 AOE 21 | . . . 3 . . . . 2 . 2 11 2 . . 1 Classes Destroyed 19 | 2 6 2 3 1 . 1 2 1 . . . . . . 1 Worker 9 | . . . 3 . . . . . . . 3 . . . 3 Builder 12 | . 2 . 3 1 . 1 . . . . 2 1 . . 2 Tunneler 7 | 5 . . 2 . . . . . . . . . . . . Hauler 9 | . 1 . 3 2 . . . . . . . 2 . . 1 Recycler 13 | 1 . . 4 4 . . . . . . 2 1 . . 1 Operator 2 | . 1 . . . . . . . . . 1 . . . . Watcher 10 | . 3 . 2 1 . . . . . . 3 . . . 1 Swarmer 19 | . 3 . . . . . . 5 . 2 . 9 . . . Grunt 55 | . 11 1 5 12 . . 1 2 . . 12 4 . . 7 Brawler 2 | . . . 1 . . . . . . . 1 . . . . Researcher 1 | . . . . . . . . 1 . . . . . . . Sentry 24 | . . . 4 4 . . . 1 . 1 3 7 . . 4 Specialist 4 | . . . . . . . . . . . . . . . 4 Hunter 7 | . . . . 2 . . . . . . 2 . . . 3 Programmer 15 | . . . . . . 1 . . . 2 10 . . . 2 Cetus Guard 1 | . . . . . . . . . . . . . 1 . . Subdweller 14 | . . 12 . . 2 . . . . . . . . . . Scientist 1 | . . 1 . . . . . . . . . . . . . Packrat 1 | . . . . . . . . 1 . . . . . . . Samaritan 11 | . . . . . . . 7 4 . . . . . . . Thug 1 | . . . . . . . . 1 . . . . . . . Savage 1 | . . . . . . . . 1 . . . . . . . Mutant 3 | . . . . . . . 2 1 . . . . . . . Best Kill Streak 8 | 3 3 5 4 5 1 1 1 3 . 3 4 8 1 . 4 Combat Bots Only 5 | . 3 5 3 4 1 1 1 3 . 3 4 4 1 . 4 Max Kills in Single Turn 4 | 1 1 1 4 2 1 1 1 1 . 1 3 2 1 . 1 Gunslinging . | . . . . . . . . . . . . . . . . Exploded 3 | . . . 3 . . . . 1 . 1 2 2 . . 1 Melee 1 | . . . . . . . . 1 . . 1 1 . . 1 Uniques/NPCs Destroyed . | . . . . . . . . . . . . . . . . Combat | -11 -10 -10 -8 -8 -8 -6 -6 -6 -6 -5 -5 -5 -5 -5 -5 -------- Run | Yrd Mat Sub Mat Sto Rec Fac Low Low Dat Pro Fac Ext Cet Arc Hub Hostile Shots Fired 1183 | . 58 51 16 69 4 12 16 82 . 30 286 217 25 . 317 Missed 300 | . 14 12 3 16 2 2 5 33 . 7 70 57 6 . 73 Hits 883 | . 44 39 13 53 2 10 11 49 . 23 216 160 19 . 244 Melee 3 | . . . . . . . . . . . 3 . . . . Projectile 880 | . 44 39 13 53 2 10 11 49 . 23 213 160 19 . 244 AOE 4 | . . 4 . . . . . . . . . . . . . Critical Strikes 40 | . . 1 2 2 . . . . . 4 16 5 1 . 9 Part Disruptions 1 | . . . . . . . . . . . . . . . 1 Damage Taken 15482 | . 496 965 197 815 43 146 132 623 . 464 5042 3157 370 226 2806 Core 1315 | . 34 151 . 74 . . 9 28 . . 372 386 20 41 200 Absorbed by Shields 1577 | . . . . . . . . . . . . 334 165 20 1058 Regen/Repaired (Parts) 2891 | . . . . . 60 . 76 277 . . 1023 930 224 . 301 Core Remaining (%) 76 | 100 . 26 . . 86 . . . . 95 . . . . . Volleys Fired 676 | 16 86 69 97 57 10 30 4 20 . 12 101 82 23 . 69 Largest 3 | 2 2 2 3 3 3 3 3 3 . 3 3 3 2 . 1 Hottest 235 | 40 100 100 168 105 114 148 167 202 . 176 235 125 86 . 95 Shots Fired 1210 | 32 147 106 176 171 23 61 12 46 . 25 152 166 27 . 66 Gun 710 | 32 120 54 150 171 18 9 8 23 . 10 15 79 21 . . Cannon 416 | . 5 27 20 . 5 52 4 18 . 10 121 85 6 . 63 Launcher 33 | . . . 2 . . . . 5 . 5 16 2 . . 3 Special 51 | . 22 25 4 . . . . . . . . . . . . Kinetic 802 | 32 125 81 84 147 23 61 12 34 . 10 9 125 6 . 53 Thermal 348 | . 22 25 92 24 . . . 7 . 10 101 36 21 . 10 Explosive 31 | . . . . . . . . 5 . 5 16 2 . . 3 Electromagnetic 29 | . . . . . . . . . . . 26 3 . . . Robot Hit Streak 33 | 9 33 31 13 17 5 4 6 12 . 5 9 30 3 . 7 Robot Miss Streak 5 | 3 2 1 5 2 1 2 2 2 . 4 4 5 3 . 3 Penetration Max 1 | . . . . . . . . . . . 1 1 . . 1 Secondary Targets 2 | . . 1 . 1 . . . . . . . . . . . Max Gunslinging Chain 1 | . . 1 . 1 . . . . . . . . . . . Shots Hit Robots 798 | 17 83 64 101 112 10 17 26 48 . 13 115 108 14 . 70 Core Hits 369 | 7 33 24 38 49 3 3 14 23 . 10 58 60 6 . 41 Critical Kills 7 | . 3 . . . . . . . . 1 2 1 . . . Critical Parts Destroyed 13 | . . . . . . . . 1 . . 7 5 . . . Critical Strikes 40 | . 3 3 6 . . . . 2 . 1 11 11 . . 3 Burn 6 | . . . 6 . . . . . . . . . . . . Meltdown 1 | . . . . . . . . . . . 1 . . . . Destroy 17 | . 3 3 . . . . . 1 . 1 1 8 . . . Blast 2 | . . . . . . . . . . . . 2 . . . Smash 7 | . . . . . . . . . . . 7 . . . . Sever 7 | . . . . . . . . 1 . . 2 1 . . 3 Melee Attacks 163 | . . . . . . 7 19 22 . 3 48 21 4 1 38 Impact 23 | . . . . . . . . . . . 23 . . . . Slashing 140 | . . . . . . 7 19 22 . 3 25 21 4 1 38 Piercing . | . . . . . . . . . . . . . . . . Sneak Attacks 36 | . . . . . . . 12 19 . . 2 1 . . 2 Combat Hostiles . | . . . . . . . . . . . . . . . . Follow-up Attacks . | . . . . . . . . . . . . . . . . Damage Inflicted 23844 | 229 1091 1268 2050 1903 180 367 1256 2078 . 504 5518 2777 492 . 4131 Guns 7329 | 229 996 898 1431 1895 180 148 75 274 . 121 37 799 246 . . Cannons 7537 | . 71 370 249 . . 219 100 283 . 148 1958 1518 246 . 2375 Explosions 3529 | . . . 370 . . . . 165 . 235 2229 176 . . 354 Melee 5410 | . . . . . . . 1081 1356 . . 1287 284 . . 1402 Ramming 15 | . . . . 8 . . . . . . 7 . . . . Kinetic 11007 | 229 1067 1268 1080 1527 180 367 175 451 . 121 107 2017 246 . 2172 Thermal 4385 | . 24 . 970 368 . . . 106 . 148 2052 268 246 . 203 Explosive 2931 | . . . . . . . . 165 . 235 2001 176 . . 354 Electromagnetic 96 | . . . . . . . . . . . 64 32 . . . Impact 612 | . . . . . . . . . . . 612 . . . . Slashing 4798 | . . . . . . . 1081 1356 . . 675 284 . . 1402 Piercing . | . . . . . . . . . . . . . . . . Highest Corruption 29 | . . . . 2 2 1 1 1 1 5 25 25 25 25 29 Average Corruption 8 | . . . . 2 2 1 1 1 1 1 9 25 25 25 25 Corruption Purged . | . . . . . . . . . . . . . . . . Corruption Blocked . | . . . . . . . . . . . . . . . . Effects 318 | . . . . 7 21 4 10 13 . 11 62 118 21 5 46 Message Errors 89 | . . . . 2 3 3 4 5 . 5 18 32 5 2 10 Matter Fused 69 | . . . . 2 6 . 1 4 . 4 18 16 2 1 15 Heat Flow Errors 38 | . . . . . 5 . . . . . 5 19 4 1 4 Energy Discharges 33 | . . . . . 1 . 1 1 . . 7 16 2 1 4 Parts Rejected 4 | . . . . 1 . . . . . . 1 1 1 . . Parts Fused 4 | . . . . . 1 . . 1 . 1 1 . . . . Data Loss (minor) 35 | . . . . 2 2 . 3 2 . 1 5 14 2 . 4 Data Loss (major) 12 | . . . . . 2 1 1 . . . 1 4 1 . 2 Misfires 3 | . . . . . 1 . . . . . 2 . . . . Alerts 5 | . . . . . . . . . . . 1 2 1 . 1 Misdirections 6 | . . . . . . . . . . . . 2 1 . 3 Weapon Failures 20 | . . . . . . . . . . . 3 12 2 . 3 Overload Shots . | . . . . . . . . . . . . . . . . Overflow Damage 1281 | . . . . . . 11 210 355 . 27 422 28 . . 228 Projectiles 233 | . . . . . . 11 . 2 . . 46 8 . . 166 Explosions 140 | . . . . . . . . 34 . 27 55 20 . . 4 Melee 908 | . . . . . . . 210 319 . . 321 . . . 58 Knockbacks 32 | . . 6 1 . . 4 . 1 . . 2 4 . . 14 Impact . | . . . . . . . . . . . . . . . . Kinetic 31 | . . 6 1 . . 4 . 1 . . 1 4 . . 14 Secondary 1 | . . . . . . . . . . . 1 . . . . Self-Inflicted Damage 103 | . . . . . . . . . . . 73 . . . 30 Shots 3 | . . . . . . . . . . . 2 . . . 1 Rammed 3 | . . . . 1 . . . . . . 2 . . . . Targets Rammed 3 | . . . . 1 . . . . . . 2 . . . . Kicked . | . . . . . . . . . . . . . . . . Crushed . | . . . . . . . . . . . . . . . . Highest Temperature 445 | . 100 10 342 334 263 445 169 315 . 274 358 403 201 154 351 Average Temperature 88 | . 23 10 55 101 109 146 89 138 . 119 93 111 56 78 103 Received Heat Transfer 3341 | . 252 168 144 315 12 . . 105 . 9 1062 845 46 . 383 Effects 16 | . . . . 4 . 3 . . . . 2 3 . . 4 Shutdowns 3 | . . . . 1 . . . . . . . 1 . . 1 Energy Bleed 3 | . . . . . . . . . . . 1 1 . . 1 Interference 8 | . . . . 3 . 3 . . . . . . . . 2 Matter Decay 1 | . . . . . . . . . . . . 1 . . . Damage (minor) 1 | . . . . . . . . . . . 1 . . . . Siege Activations . | . . . . . . . . . . . . . . . . Martial Activations . | . . . . . . . . . . . . . . . . Shielding Activations . | . . . . . . . . . . . . . . . . Robots Disrupted . | . . . . . . . . . . . . . . . . Combat Hostiles . | . . . . . . . . . . . . . . . . Robots Corrupted 4 | . . . . . . . . . . . 4 . . . . Combat Hostiles 3 | . . . . . . . . . . . 3 . . . . Parts Fried 2 | . . . . . . . . . . . 1 . 1 . . Impact Corruptions 11 | . . . . . . . . . . . 11 . . . . Robots Melted 3 | . . . 1 . . . . . . . 2 . . . . Combat Hostiles 3 | . . . 1 . . . . . . . 2 . . . . Parts Melted 12 | . . . 1 1 1 . . . . . 7 2 . . . Heat Transferred 7342 | . 50 . 2812 703 . . . 185 . 222 2408 407 407 . 148 Parts Sabotaged . | . . . . . . . . . . . . . . . . Parts Stolen . | . . . . . . . . . . . . . . . . Parts Stripped . | . . . . . . . . . . . . . . . . Power Chain Reactions . | . . . . . . . . . . . . . . . . Alert | -11 -10 -10 -8 -8 -8 -6 -6 -6 -6 -5 -5 -5 -5 -5 -5 ------- Run | Yrd Mat Sub Mat Sto Rec Fac Low Low Dat Pro Fac Ext Cet Arc Hub Maximum Alert Level 4 | . . . . 1 . 1 . . . . 3 4 3 2 2 Low Security (%) 60 | 100 100 . 100 83 100 77 . . . . 18 . . . 29 Level 1 18 | . . . . 16 . 22 . . . . 40 33 . 80 64 Level 2 13 | . . . . . . . . . . . 25 42 75 19 6 Level 3 6 | . . . . . . . . . . . 15 21 24 . . Level 4 . | . . . . . . . . . . . . 2 . . . Level 5 . | . . . . . . . . . . . . . . . . High Security . | . . . . . . . . . . . . . . . . Max Security . | . . . . . . . . . . . . . . . . Peak Influence 1156 | 10 89 . 195 281 110 305 . . . . 718 1156 758 543 528 Initial 645 | . . . . 67 100 305 . . . . 16 343 645 269 155 Average 212 | 1 27 . 51 122 20 107 . . . . 386 524 662 319 246 Influence Increases 7149 | 30 480 30 433 586 195 367 63 218 . 110 1355 1669 371 465 777 Destroy 0b10 Robot/C 3360 | . 280 20 200 360 . 20 40 180 . 100 560 800 160 240 400 Destroy 0b10 Robot/NC 350 | 30 35 . 85 40 . 5 15 . . . 55 25 10 10 40 Destroy Leader 602 | . 78 10 60 106 . 10 . 20 . 10 136 50 . . 122 Allied During Kill 836 | . . . . . . . 8 3 . . . 465 170 190 . Successful Hack 153 | . 23 . 42 . 12 5 . . . . 14 4 9 . 44 Select Force Hacks 210 | . 30 . . . 180 . . . . . . . . . . Disable Machine 330 | . . . 15 45 . 15 . . . . 150 45 . . 60 Destroy Structure 768 | . 19 . 31 5 3 12 . . . . 440 130 22 10 96 Advance Influence 300 | . . . . . . 300 . . . . . . . . . Lose Combat Pursuer 240 | . 15 . . 30 . . . 15 . . . 150 . 15 15 Influence Decreases 6621 | 30 480 30 273 489 438 381 50 231 . 84 681 1215 851 695 693 Entered New Map 1833 | . . . . 93 157 9 . 4 . . 10 357 509 405 289 Time Decay 3972 | 30 460 30 273 386 275 372 30 197 . 84 561 628 222 50 374 Lost Part 270 | . 20 . . 10 . . . 10 . . 110 90 . . 30 Lost Ally 540 | . . . . . . . 20 20 . . . 140 120 240 . Purge Threat 6 | . . . . . 6 . . . . . . . . . . Squads Dispatched 30 | . 5 . 1 5 . 1 . . . . 7 4 . . 7 Investigation 7 | . 4 . 1 1 . . . . . . 1 . . . . Extermination 6 | . . . . . . 1 . . . . 4 . . . 1 Reinforcement 13 | . 1 . . 2 . . . . . . 2 2 . . 6 Assault 2 | . . . . . . . . . . . . 2 . . . Garrison 2 | . . . . 2 . . . . . . . . . . . Intercept . | . . . . . . . . . . . . . . . . Searches Triggered . | . . . . . . . . . . . . . . . . Data Miner Redirects 2 | . . . . . . . . . . . 1 1 . . . Construction Impeded 1 | . . . . . . . . . . . . 1 . . . Haulers Reinforced 1 | . . . . . . . . . . . . . . . 1 Active Scanning Responses . | . . . . . . . . . . . . . . . . Cargo Convoy Interrupts . | . . . . . . . . . . . . . . . . Stealth | -11 -10 -10 -8 -8 -8 -6 -6 -6 -6 -5 -5 -5 -5 -5 -5 --------- Run | Yrd Mat Sub Mat Sto Rec Fac Low Low Dat Pro Fac Ext Cet Arc Hub Distress Signals 13 | . . . 1 3 . . . . . . 2 4 2 . 1 Communications Jammed . | . . . . . . . . . . . . . . . . Distress Signals . | . . . . . . . . . . . . . . . . Times Spotted 234 | . 20 13 17 25 1 1 1 10 . 4 41 52 10 4 35 Peak Tracking Total 9 | . 3 3 3 5 1 1 1 4 . 2 5 9 5 8 8 Tactical Retreats 12 | . 1 . . 2 . . . 1 . . . 6 . 1 1 Traps | -11 -10 -10 -8 -8 -8 -6 -6 -6 -6 -5 -5 -5 -5 -5 -5 ------- Run | Yrd Mat Sub Mat Sto Rec Fac Low Low Dat Pro Fac Ext Cet Arc Hub Traps Triggered 12 | . 5 . . 1 . . . . . . 1 5 . . . Indirectly . | . . . . . . . . . . . . . . . . Trap Hack Attempts . | . . . . . . . . . . . . . . . . Triggered . | . . . . . . . . . . . . . . . . Disarmed . | . . . . . . . . . . . . . . . . Reprogrammed . | . . . . . . . . . . . . . . . . Reused . | . . . . . . . . . . . . . . . . Traps Extracted . | . . . . . . . . . . . . . . . . Installed . | . . . . . . . . . . . . . . . . Triggered . | . . . . . . . . . . . . . . . . Most Traps Carried 1 | . . 1 1 . . . . . . . . . . . . Machines | -11 -10 -10 -8 -8 -8 -6 -6 -6 -6 -5 -5 -5 -5 -5 -5 ---------- Run | Yrd Mat Sub Mat Sto Rec Fac Low Low Dat Pro Fac Ext Cet Arc Hub Machines Disabled 25 | . . 1 1 3 . 1 1 . . . 10 4 . . 4 Max in Single Turn 2 | . . 1 1 1 . 1 1 . . . 2 1 . . 1 Machines Repaired . | . . . . . . . . . . . . . . . . Machines Dismantled 1 | . . . . . . . . . . . . 1 . . . Machines Sabotaged . | . . . . . . . . . . . . . . . . Overloaded Fab Kills . | . . . . . . . . . . . . . . . . Hacking | -11 -10 -10 -8 -8 -8 -6 -6 -6 -6 -5 -5 -5 -5 -5 -5 --------- Run | Yrd Mat Sub Mat Sto Rec Fac Low Low Dat Pro Fac Ext Cet Arc Hub Machines Accessed 54 | . 7 1 6 4 13 2 1 1 3 . 5 3 1 1 6 Terminals 33 | . 6 . 6 4 5 1 . . . . 2 3 1 . 5 Fabricators 1 | . . . . . . . . . . . 1 . . . . Repair Stations 1 | . . . . . . . . . . . 1 . . . . Recycling Units 9 | . 1 . . . 6 1 . . . . 1 . . . . Scanalyzers . | . . . . . . . . . . . . . . . . Garrison Access 1 | . . . . . . . . . . . . . . . 1 Total Hacks 174 | . 21 1 23 11 33 7 1 1 19 . 10 8 2 25 12 Successful 110 | . 10 1 16 3 21 2 1 1 19 . 3 4 1 25 3 Failed 63 | . 11 . 6 8 12 5 . . . . 7 4 1 . 9 Catastrophic 12 | . 1 . . 1 1 . . . . . 2 2 . . 5 Database Lockouts 1 | . . . 1 . . . . . . . . . . . . Manual 87 | . 17 . 23 8 19 2 . . . . 4 4 2 . 8 Terminals 91 | . 17 . 23 11 14 2 . . . . 4 8 2 . 10 Fabricators 2 | . . . . . . . . . . . 2 . . . . Repair Stations 2 | . . . . . . . . . . . 2 . . . . Recycling Units 23 | . 4 . . . 12 5 . . . . 2 . . . . Scanalyzers . | . . . . . . . . . . . . . . . . Garrison Access 2 | . . . . . . . . . . . . . . . 2 Terminal Hacks 69 | . 1 1 5 2 10 . 1 1 19 . . 2 1 25 1 Record 32 | . . . . . 5 . . . 2 . . . . 25 . Part Schematic 8 | . . . . . . . . . 8 . . . . . . Robot Schematic 6 | . . . . . . . . . 6 . . . . . . Robot Analysis 3 | . . . 1 . 2 . . . . . . . . . . Prototype ID Bank 5 | . 1 . 1 . . . . . 3 . . . . . . Open Door 3 | . . . . . . . 1 1 . . . . 1 . . Branch Access Points 1 | . . . 1 . . . . . . . . . . . . Terminal Index 1 | . . . 1 . . . . . . . . . . . . Alert Level 2 | . . . . 1 . . . . . . . 1 . . . Unreport Threat 1 | . . . . . 1 . . . . . . . . . . Locate Traps 2 | . . . . 1 . . . . . . . 1 . . . Security Status 1 | . . . 1 . . . . . . . . . . . . Zone Layout 1 | . . . . . . . . . . . . . . . 1 Proto ID Catalog 1 | . . 1 . . . . . . . . . . . . . Release Object 2 | . . . . . 2 . . . . . . . . . . Fabricator Hacks 1 | . . . . . . . . . . . 1 . . . . Network Status 1 | . . . . . . . . . . . 1 . . . . Repair Station Hacks . | . . . . . . . . . . . . . . . . Recycling Unit Hacks 3 | . . . . . 2 1 . . . . . . . . . Retrieve Components 3 | . . . . . 2 1 . . . . . . . . . Scanalyzer . | . . . . . . . . . . . . . . . . Garrison Access Hacks . | . . . . . . . . . . . . . . . . Unauthorized Hacks 37 | . 9 . 11 1 9 1 . . . . 2 2 . . 2 Terminals 30 | . 8 . 11 1 3 1 . . . . 2 2 . . 2 Assimilate 1 | . . . 1 . . . . . . . . . . . . Botnet 10 | . 1 . 3 . 1 1 . . . . 1 1 . . 2 Operators 2 | . 1 . 1 . . . . . . . . . . . . Skim 17 | . 6 . 6 1 2 . . . . . 1 1 . . . Fabricators . | . . . . . . . . . . . . . . . . Repair Stations . | . . . . . . . . . . . . . . . . Recycling Units 7 | . 1 . . . 6 . . . . . . . . . . Tunnel 7 | . 1 . . . 6 . . . . . . . . . . Scanalyzers . | . . . . . . . . . . . . . . . . Garrison Access . | . . . . . . . . . . . . . . . . Data Cores Recovered . | . . . . . . . . . . . . . . . . Used . | . . . . . . . . . . . . . . . . Hacking Detections 41 | . 7 . 6 5 7 2 . . . . 5 3 . . 6 Full Trace Events 4 | . 1 . 1 1 . . . . . . 1 . . . . Feedback Events . | . . . . . . . . . . . . . . . . Feedback Blocked . | . . . . . . . . . . . . . . . . Robot Schematics Acquired 6 | . . . . . . . . . 6 . . . . . . Robots Built . | . . . . . . . . . . . . . . . . Authchips . | . . . . . . . . . . . . . . . . Time . | . . . . . . . . . . . . . . . . Total Robot Build Rating . | . . . . . . . . . . . . . . . . Part Schematics Acquired 8 | . . . . . . . . . 8 . . . . . . Parts Built . | . . . . . . . . . . . . . . . . Authchips . | . . . . . . . . . . . . . . . . Time . | . . . . . . . . . . . . . . . . Total Part Build Rating . | . . . . . . . . . . . . . . . . Part Studies Acquired . | . . . . . . . . . . . . . . . . Parts Repaired . | . . . . . . . . . . . . . . . . Time . | . . . . . . . . . . . . . . . . Parts Recycled . | . . . . . . . . . . . . . . . . Recycled Matter . | . . . . . . . . . . . . . . . . Retrieved Matter . | . . . . . . . . . . . . . . . . Retrieved Components 9 | . . . . . 8 1 . . . . . . . . . Parts Scanalyzed . | . . . . . . . . . . . . . . . . Part Schematics Acquired . | . . . . . . . . . . . . . . . . Parts Damaged . | . . . . . . . . . . . . . . . . Bothacking | -11 -10 -10 -8 -8 -8 -6 -6 -6 -6 -5 -5 -5 -5 -5 -5 ------------ Run | Yrd Mat Sub Mat Sto Rec Fac Low Low Dat Pro Fac Ext Cet Arc Hub Used RIF Installer . | . . . . . . . . . . . . . . . . Robots Hacked . | . . . . . . . . . . . . . . . . Non-combat . | . . . . . . . . . . . . . . . . Combat . | . . . . . . . . . . . . . . . . Robot Hacks Applied . | . . . . . . . . . . . . . . . . Relay Couplers Released . | . . . . . . . . . . . . . . . . Fabnet Peak Effective % . | . . . . . . . . . . . . . . . . Robots Rewired 24 | . . . . . . . 3 . . . . 21 . . . Allies Hacked . | . . . . . . . . . . . . . . . . Hacks Repelled . | . . . . . . . . . . . . . . . . Allies | -11 -10 -10 -8 -8 -8 -6 -6 -6 -6 -5 -5 -5 -5 -5 -5 -------- Run | Yrd Mat Sub Mat Sto Rec Fac Low Low Dat Pro Fac Ext Cet Arc Hub Total Allies 37 | . . . . . . . 3 . . . . 29 5 . . Largest Group 21 | . . . . . . . 3 2 . . . 21 19 17 . Highest-Rated Group 975 | . . . . . . . 87 58 . . . 735 975 956 . Highest-Rated Ally 159 | . . . . . . . 29 29 . . . 159 159 159 . Total Orders . | . . . . . . . . . . . . . . . . Ally Attacks 320 | . . . . . . . 17 8 . . . 161 92 42 . Total Damage 6815 | . . . . . . . 170 114 . . . 3100 1972 1459 . Kills 51 | . . . . . . . 2 1 . . . 24 9 15 . Allies Corrupted . | . . . . . . . . . . . . . . . . Allies Melted 1 | . . . . . . . . . . . . . . 1 . Intel | -11 -10 -10 -8 -8 -8 -6 -6 -6 -6 -5 -5 -5 -5 -5 -5 ------- Run | Yrd Mat Sub Mat Sto Rec Fac Low Low Dat Pro Fac Ext Cet Arc Hub Active Infowar (turns) 8604 | 128 1579 447 1149 243 . 908 1636 1117 104 1051 242 . . . . Sensors 3876 | . . . . . . . 1604 1117 104 1051 . . . . . Terrain 464 | . . . . . . 224 . . . . 240 . . . . Seismic 4486 | 128 1579 447 1149 243 . 908 32 . . . . . . . . Jamming 2 | . . . . . . . . . . . 2 . . . . Robot Analysis Total 3 | . . . 1 . 2 . . . . . . . . . . Derelict Logs Recovered 7 | . . 2 . . . . 2 1 . 2 . . . . . Drone Launches . | . . . . . . . . . . . . . . . . Drone Recoveries . | . . . . . . . . . . . . . . . . Exploration | -11 -10 -10 -8 -8 -8 -6 -6 -6 -6 -5 -5 -5 -5 -5 -5 ------------- Run | Yrd Mat Sub Mat Sto Rec Fac Low Low Dat Pro Fac Ext Cet Arc Hub Turns Passed 20768 | 217 1773 2321 1989 907 2180 983 1920 1474 104 1151 2125 2173 473 110 868 Spaces Moved 9540 | 94 737 1361 727 276 805 449 928 840 77 809 926 962 183 62 304 Core 5 | 4 1 . . . . . . . . . . . . . . Treads 5460 | 90 736 296 177 276 805 449 408 840 77 809 350 133 . . 14 Legs 500 | . . . . . . . . . . . 402 98 . . . Wheels 3575 | . . 1065 550 . . . 520 . . . 174 731 183 62 290 Hover . | . . . . . . . . . . . . . . . . Flight . | . . . . . . . . . . . . . . . . Fastest Speed 50 | 50 160 140 101 160 151 173 159 136 136 136 123 108 135 175 175 Average Speed 164 | 155 160 148 125 208 191 187 193 155 136 136 170 164 174 175 185 Slowest Speed 350 | 160 350 200 160 240 320 250 217 159 136 136 233 251 175 175 230 Overloaded Moves . | . . . . . . . . . . . . . . . . Propulsion Burnouts . | . . . . . . . . . . . . . . . . Robots Hopped . | . . . . . . . . . . . . . . . . Potential Cave-ins . | . . . . . . . . . . . . . . . . Cave-ins Triggered 1 | . . . . . . . . . . . 1 . . . . Exploration Rate (%) 62 | 4 97 87 41 37 98 11 97 88 70 93 24 83 67 72 37 Regions Visited 15 Branch Regions 11 Pre-discovered Areas 14 | . 2 2 2 . 6 . . 1 1 . . . . . . Known Exits Taken 10 | . 1 1 1 1 . 1 1 1 1 1 1 . . . . Unknown Exits Taken 5 | 1 . . . . 1 . . . . . . 1 1 1 . Scrap Searched 12 | . . 4 . . . . 4 3 . 1 . . . . . Spaces Dug 92 | . 13 . 4 . 2 9 . 2 . 3 17 14 4 1 23 Terrain Destroyed 491 | . 20 . 29 . 2 12 . 25 . 12 247 65 6 1 72 Melee 31 | . . . . . . 6 . 2 . 3 4 11 4 1 . Projectile 129 | . 20 . 4 . 2 6 . 1 . . 42 28 2 . 24 AOE 331 | . . . 25 . . . . 22 . 9 201 26 . . 48 Terrain Rammed . | . . . . . . . . . . . . . . . . Walls Destroyed . | . . . . . . . . . . . . . . . . Machines Disabled . | . . . . . . . . . . . . . . . . Actions | -11 -10 -10 -8 -8 -8 -6 -6 -6 -6 -5 -5 -5 -5 -5 -5 --------- Run | Yrd Mat Sub Mat Sto Rec Fac Low Low Dat Pro Fac Ext Cet Arc Hub Total 13246 | 130 1133 1504 1657 517 1440 533 1018 943 76 836 1240 1367 305 62 485 Wait 2186 | 10 281 30 719 135 587 17 21 35 . 6 104 96 80 . 65 Move 9525 | 93 736 1360 726 275 804 448 927 839 76 808 925 961 182 61 304 Hop . | . . . . . . . . . . . . . . . . Pick Up 136 | 4 9 18 34 11 7 13 4 5 . 1 12 12 5 . 1 Fast Attach 65 | 7 4 1 11 6 1 1 1 4 . . 14 11 2 . 2 Attach 65 | . 2 6 10 . 2 7 5 6 . 2 15 7 2 . 1 Detach 21 | . . . . . . 1 5 3 . 1 7 1 1 . 2 Swap 88 | . 11 15 22 17 3 3 4 4 . 2 . 7 . . . Drop 149 | . 4 5 38 15 26 6 7 5 . 1 12 21 6 . 3 Fire 676 | 16 86 69 97 57 10 30 4 20 . 12 101 82 23 . 69 Melee 163 | . . . . . . 7 19 22 . 3 48 21 4 1 38 Ram . | . . . . . . . . . . . . . . . . Kick . | . . . . . . . . . . . . . . . . Crush 3 | . . . . 1 . . . . . . 2 . . . . Escape Stasis 24 | . . . . . . . . . . . . 24 . . . Rewire 137 | . . . . . . . 21 . . . . 116 . . . Trap . | . . . . . . . . . . . . . . . . Miscellaneous 8 | . . . . . . . . . . . . 8 . . . Route ------- -11/Scrapyard -10/Materials (discovered 5 exits: *Mat x3 / *Min / *Sub) -10/Subcaves (discovered 2 exits: *Mat x2) -8/Materials (discovered 3 exits: Fac x2 / *Sto) -8/Storage -8/Recycling -6/Factory -6/Lower Caves -6/Lower Caves (discovered 2 exits: *Fac / *Dat) -6/Data Miner -5/Proximity Caves -5/Factory (discovered 2 exits: [*Fac] / *Ext) -5/Extension (discovered 2 exits: [*Fac] / *Cet) -5/Cetus (discovered 2 exits: [*Fac] / *Arc) -5/Archives -5/Hub_04(d) History --------- Turn | Location | Event 11 | -11/Scrapyard | Discovered new exit (range 16) 218 | -11/Scrapyard | Entered Materials 314 | -10/Materials | Build established: Mutant 541 | -10/Materials | Discovered new exit (range 10) 983 | -10/Materials | Discovered new exit (range 4) 1299 | -10/Materials | Discovered new exit (range 4) 1494 | -10/Materials | Discovered new exit (range 7) 1664 | -10/Materials | Learned 2 Mines zone layouts 1723 | -10/Materials | Learned location of Mines (-10) 1774 | -10/Materials | Identified exit to Materials 1774 | -10/Materials | Identified exit to Mines 1774 | -10/Materials | Identified exit to Subcaves 1815 | -10/Materials | Loaded intel: 7 terminal locations 1845 | -10/Materials | Learned 4 Recycling zone layouts 1850 | -10/Materials | Build established: Scavenger-Mutant 1988 | -10/Materials | Loaded intel: 7 trap records 1991 | -10/Materials | Entered Subcaves 1992 | -10/Subcaves | Approached by a straggling Scientist 1992 | -10/Subcaves | Identified exit to Materials 2243 | -10/Subcaves | Visited 4L-MR0's lab 2261 | -10/Subcaves | Found Gun Armor 2476 | -10/Subcaves | Shifting Twisted Machinery released Humpback 2518 | -10/Subcaves | Shifting Twisted Machinery released Sub. Machine Gun 2685 | -10/Subcaves | Learned location of Storage (-8) 3359 | -10/Subcaves | Learned location of Zion (-7) 3359 | -10/Subcaves | Met a Zionite searching for "candidates" 3376 | -10/Subcaves | Learned Materials garrison access intel 3841 | -10/Subcaves | Shifting Twisted Machinery released Sub. Optics 3878 | -10/Subcaves | Shifting Twisted Machinery released Mak. Light Armor Plating 4082 | -10/Subcaves | Ambushed by Subdwellers from Twisted Machinery 4083 | -10/Subcaves | Ambushed by Subdweller buried in earth 4101 | -10/Subcaves | Ambushed by Subdweller buried in earth 4103 | -10/Subcaves | Ambushed by Subdweller buried in earth 4106 | -10/Subcaves | Core integrity fell below 50% 4153 | -10/Subcaves | Lost 6 parts (1n5w) 4312 | -10/Subcaves | Entered Materials 4312 | -8/Materials | Evolved 4 slots: Propulsion x2, Utility x1, Weapon x1 4313 | -8/Materials | Loaded intel: 1 garrison access location 4382 | -8/Materials | Build established: Mutant 4560 | -8/Materials | Discovered new exit (range 11) 5039 | -8/Materials | Build established: Scavenger-Gunner 5919 | -8/Materials | Build established: Scavenger-Tank 6060 | -8/Materials | Identified exit to Storage 6060 | -8/Materials | Central database locked down 6106 | -8/Materials | Learned Storage emergency access door positions 6168 | -8/Materials | Identified exit to Factory 6186 | -8/Materials | Learned location of Lower Caves (-6) 6217 | -8/Materials | Learned location of 1 exit from Lower Caves 6247 | -8/Materials | Learned 2 Lower Caves zone layouts 6301 | -8/Materials | Entered Storage 6302 | -8/Storage | Identified exit to Recycling 6511 | -8/Storage | Garrison activated, responded to threat 6700 | -8/Storage | Garrison activated, responded to threat 7121 | -8/Storage | Build established: Tank 7199 | -8/Storage | Used back door to open Recycling access 7208 | -8/Storage | Entered Recycling 7697 | -8/Recycling | Entered Scraplab 7708 | -8/Recycling | Found Prototype Device 7708 | -8/Recycling | Identified Scrap Engine 8077 | -8/Recycling | Build established: Construct 8830 | -8/Recycling | Discovered new exit (range 16) 9388 | -8/Recycling | Entered Factory 9388 | -6/Factory | Evolved 4 slots: Propulsion x1, Utility x2, Weapon x1 9739 | -6/Factory | Discovered new exit (range 10) 10370 | -6/Factory | Identified exit to Lower Caves 10371 | -6/Factory | Entered Lower Caves 10372 | -6/Lower Caves | Identified exit to Lower Caves 11613 | -6/Lower Caves | Attacked by a delusional Derelict stockpiling Unaware 11862 | -6/Lower Caves | Encountered a Warlord checkpoint 11870 | -6/Lower Caves | Learned Factory garrison access intel 12291 | -6/Lower Caves | Entered another Lower Caves area 12291 | -6/Lower Caves | Accompanied by 2 allies 12360 | -6/Lower Caves | Found Prototype Device 12437 | -6/Lower Caves | Discovered new exit (range 13) 12467 | -6/Lower Caves | Identified exit to Factory 12539 | -6/Lower Caves | Found DCF Scrap (13 items) 12664 | -6/Lower Caves | Found Alien Artifact 12664 | -6/Lower Caves | Identified Core Expander 12664 | -6/Lower Caves | Installed Core Expander, added new Propulsion slot 12961 | -6/Lower Caves | Attracted the attention of an 0b10 checkpoint 13451 | -6/Lower Caves | Encountered a Warlord checkpoint 13591 | -6/Lower Caves | Murdered 3 allies 13726 | -6/Lower Caves | Discovered new exit (range 14) 13748 | -6/Lower Caves | Identified exit to Data Miner 13765 | -6/Lower Caves | Entered Data Miner 13765 | -6/Data Miner | Discovered new exit (range 6) 13791 | -6/Data Miner | Met Data Miner 13819 | -6/Data Miner | Learned location of Section 7 (-2) 13819 | -6/Data Miner | Acquired the access code to Warlord's prototype stash 13839 | -6/Data Miner | Received God Mode back door access code from Data Miner 13867 | -6/Data Miner | Identified exit to Proximity Caves 13869 | -6/Data Miner | Entered Proximity Caves 14259 | -5/Proximity Caves | Learned Factory garrison access intel 14610 | -5/Proximity Caves | Attracted the attention of an 0b10 checkpoint 14919 | -5/Proximity Caves | Discovered exit to Factory (range 15) 14965 | -5/Proximity Caves | Learned Factory terminal intel 15020 | -5/Proximity Caves | Entered Factory 15020 | -5/Factory | Evolved 2 slots: Power x1, Utility x1 15021 | -5/Factory | Identified exit to Extension 15022 | -5/Factory | Loaded intel: 27 terminal locations 15023 | -5/Factory | Loaded intel: 4 garrison access locations 15699 | -5/Factory | Build established: Mutant 15769 | -5/Factory | Lost 3 parts (1p1n1w) 16058 | -5/Factory | System corruption reached 10% 16144 | -5/Factory | Discovered new exit (range 11) 16276 | -5/Factory | Incoming investigation squad redirected 16696 | -5/Factory | Build established: Tank 16844 | -5/Factory | Crushed by falling debris 16995 | -5/Factory | Found Prototype Processor 16995 | -5/Factory | Identified Exp. Targeting Computer 17145 | -5/Factory | Entered Extension 17291 | -5/Extension | Build established: Scavenger-Mutant 17391 | -5/Extension | Rescued a captive Derelict 17414 | -5/Extension | Core integrity fell below 50% 17446 | -5/Extension | Lost 4 parts (3n1u) 17769 | -5/Extension | Lost 3 parts (1n1u1w) 17809 | -5/Extension | Rescued a captive Derelict 17810 | -5/Extension | Rescued a captive Derelict 17857 | -5/Extension | Spotted B-75 Beast 17861 | -5/Extension | Spotted B-75 Beast 17922 | -5/Extension | Rescued a captive Derelict 17945 | -5/Extension | Rescued a captive Derelict 17946 | -5/Extension | Rescued a captive Derelict 18238 | -5/Extension | Rescued a captive Derelict 18364 | -5/Extension | Build established: Commander-Construct 18575 | -5/Extension | Allies destroyed B-75 Beast 18759 | -5/Extension | Rescued A7 18945 | -5/Extension | First assault squad dispatched 18969 | -5/Extension | Incoming assault squad redirected 19237 | -5/Extension | Discovered new exit (range 10) 19239 | -5/Extension | Discovered new exit (range 6) 19318 | -5/Extension | Entered Cetus 19318 | -5/Cetus | Accompanied by 19 allies (A7) 19323 | -5/Cetus | Acquired a Cetus Manufacturing Module code from A7 19349 | -5/Cetus | Spotted Cetus Guard 19351 | -5/Cetus | Spotted Cetus Guard 19358 | -5/Cetus | Allies destroyed Cetus Guard 19368 | -5/Cetus | Allies destroyed Cetus Guard 19368 | -5/Cetus | Spotted Cetus Guard 19370 | -5/Cetus | Spotted Cetus Guard 19382 | -5/Cetus | Allies destroyed Cetus Guard 19395 | -5/Cetus | Allies destroyed Cetus Guard 19398 | -5/Cetus | Lost 6 allies 19480 | -5/Cetus | Escorted A7 to Cetus Mainframe 19497 | -5/Cetus | Started Cetus Manufacturing Module 19518 | -5/Cetus | Discovered new exit (range 15) 19522 | -5/Cetus | Manufactured an Enhanced Grunt 19547 | -5/Cetus | Manufactured an Enhanced Grunt 19559 | -5/Cetus | Spotted Cetus Guard 19560 | -5/Cetus | Spotted Cetus Guard 19562 | -5/Cetus | Spotted Cetus Guard 19563 | -5/Cetus | Spotted Cetus Guard 19567 | -5/Cetus | Allies destroyed Cetus Guard 19572 | -5/Cetus | Manufactured an Enhanced Grunt 19578 | -5/Cetus | Destroyed Cetus Guard 19583 | -5/Cetus | Allies destroyed Cetus Guard 19589 | -5/Cetus | Allies destroyed Cetus Guard 19594 | -5/Cetus | Discovered new exit (range 16) 19597 | -5/Cetus | Manufactured an Enhanced Grunt 19604 | -5/Cetus | Met Revision 17 19622 | -5/Cetus | Manufactured an Enhanced Grunt 19791 | -5/Cetus | Entered Archives 19791 | -5/Archives | Accompanied by 17 allies (A7) 19796 | -5/Archives | Received a hacking code to weaken MAIN.C 19829 | -5/Archives | Met Zhirov 19835 | -5/Archives | Reinforcements dispatched to Archives 19839 | -5/Archives | Unable to access archive contents 19864 | -5/Archives | Read partially decrypted archive contents 19876 | -5/Archives | Discovered new exit (range 13) 19880 | -5/Archives | Reinforcements dispatched to Archives 19900 | -5/Archives | Zhirov detonated Archives 19901 | -5/Archives | Core integrity fell below 20% 19901 | -5/Archives | Entered Hub_04(d) 19931 | -5/Hub_04(d) | Lost 6 allies 20184 | -5/Hub_04(d) | Build established: Construct 20769 | -5/Hub_04(d) | Destroyed by H-66 Slayer with Gauss Rifle Last Messages --------------- 20757_ Destroyed Arc Projector. 20757_ Destroyed Insulated Plating. 20757_ X-72 Disruptor knocked back. 20759_ Slug penetrates Wall. 20759_ K-01 Serf collects debris. 20759_ Slug penetrates Wall. 20759_ X-72 Disruptor destroyed. 20760_ Wall collapses. 20761_ U-05 Engineer builds a Wall. 20762_ K-01 Serf collects debris. 20762_ Penetrated by Slug. 20762_ Critical hit (Destroy). 20763_ Destroyed Phase Shifter. 20764_ U-05 Engineer builds a Wall. 20765_ G-50 Soldier destroyed. 20765_ Slug penetrates Wall. 20765_ Penetrated by Slug. 20769_ PMJD,PQ>OT7BYE0SRXLHVJNV,D=C 20769_ Slug penetrates Wall. 20769_ Penetrated by Slug. Map ----- +----------------------------------------------------+ | ?????????????????????????????????????????????????? | | ?????????????????????????????????????????????????? | | ?????????????????????????????????????????????????? | | ?????????????????????????????????????????????????? | | ?????????????????????????????????????????????????? | | ?????????????????????????????????????????????????? | | ?????????????????????????????????????????????????? | | ?????????????????????????????????????????????????? | | ?????????????????????????????????????????????????? | | ?????????????????????????????????????????????????? | | ??????????????????????????? ????????????????????? | | ??????????????????????????? !????????????????????? | | ??????????????????????????? ????????????????????? | | ??????????????????????????? =????????????????????? | | ??????????????????????????? =??????#?????????????? | | ??????????????????#???????? =????? #?????????????? | | ??????????????????# ??????? ???? !#?????????????? | | ????????????????########### ??? ??????????????? | | ????????????????# # ?? ???????????????? | | ????????????????# ! """%#####+###??????????????? | | ????????????????# ! !!# ???????????????? | | ????????????????# ! "[ hw!% ?????????????????? | | ?????????????????? =!*#!| ???????????????????? | | ??????????????????? "" ""%#[#????????????????????? | | ????????????????# ""T"!!#%#####?????? ????????? | | ????????????????# ! """[@#*#"""#????? ?????????? | | ?????????????????# ########!#"T"#??? """????????? | | ???????????????????????###=%#" "### ""???????? | | ???????????????????????# [ !+ """???????? | | ???????????????????????# !%# """"???????? | | ???????????????????????# [#[ #????? | | ???????????????????????# + #????? | | ???????????????????????# #################????? | | ????????????????????#### # #????? | | ???????????????+ + " " " " " " " #????? | | ???????????????############## " " " " " " " ?????? | | ????????????????????????????# " " " " " " ??###### | | ????????#######?????????????# ###### | | ????????# ???#?????????###+#####+###???#%[ # | | ? # #??????????## ### #####*== " | | ? # """" #??????????# ==!!!!!! | | ?####+### """" #??????????# =!%!!%!!! | | ? / """" #??????????# ! =!!!|*%! | | ? # ] """" #??????????###### #####[!=[" | | ? #### # =*[![[ #??############### ##???#!* # | | ? #??# # [=% [!% #??# """ """ """ # ########### | | ? #??# ######/####### + + #? | | ? #??# #???#=**%%! *+*% # # #? | | ? #??# #???#%*%###### # # #? | | ?###??# #???#==*#???####+#######+### # #? | +----------------------------------------------------+ Best States ------------- Heat Dissipation 78 Coolant Potential 80 Energy Generation 40 Energy Capacity 792 Matter Stores 300 Matter Capacity 300 Sight Range 16 Robot Scan Range 15 Terrain Scan Range 20 Terrain Scan Density 10 Armor Coverage 600 Utility Shielding 66 Evasion (%) 40 Armor Integrity Analysis 30 Recoil Reduction 5 Kinecelleration 40 Offensive Hacking 10 Item Schematics ----------------- Combat Drone Bay | -6/Data Miner | Free Lgt. Regenerative Plating | -6/Data Miner | Free Cld. Gravmag System | -6/Data Miner | Free Prc. Energy Filter | -6/Data Miner | Free Neutron Cannon | -6/Data Miner | Free Centrium Wheel | -6/Data Miner | Free Lrn. Terrain Scanner | -6/Data Miner | Free Matter Neutralizer | -6/Data Miner | Free Robot Schematics ------------------ M-22 Extractor | -6/Data Miner | Free G-50 Soldier | -6/Data Miner | Free Y-64 Sentinel | -6/Data Miner | Free L-61 Swordsman | -6/Data Miner | Free M-36 Artificer | -6/Data Miner | Free B-60 Warrior | -6/Data Miner | Free Fabricated ------------ Nothing Repaired ---------- Nothing Studied --------- None Alien Tech Used ----------------- Core Expander Achievements -------------- Bigger Is Better Challenges ------------ None Game ------ Seed DoorAccelerationExtractor Manual? 0 Play Time 02:30:27 Cumulative 426.6 hours Start 2026.02.25 @ 16:38:40 End 2026.02.25 @ 19:12:11 Sessions 1 Manual Loads 0 Difficulty Rogue Special Mode None Game No. 333 Rogue 333 Adventurer 0 Explorer 0 Win Type - Total 5 Types 3/0/0/0/0/0/0/2/0/0 Lore% 68 Gallery% 70 Achievement% 56 Wizard Run 0 Options --------- Layout 1 ASCII 0 Keyboard 0 Movement Mouse Keybinds 0 Fullscreen 1 Font 32/SmallcapsGlow Map View 50x35 Zoom Use 0% Tactical HUD 1 Map Filters NONE Filters NONE Steam 1 RUN: 89c61885-27c7-49a5-a950-bfbbfff8d1ac